{"text_format":"3","workbook":"xlsx","n_sheets":3,"sheets":["Mēneša budžeta atskaite","Mēneša izdevumi","Papildu dati"],"not_rendered":{"charts":1,"defined_names":4,"pivot_tables":2},"read":"whole","date_system":"1900"}

{"sheet":"Mēneša budžeta atskaite","index":0,"n_rows":34,"n_cols":14,"rows_kept":34,"merged":[[7,1,10,1],[7,5,10,5],[7,6,10,6],[12,1,16,1],[12,5,16,5],[12,6,16,6]]}
[null,"Budžeta pārskats",{"$nulls":7},"Budžeta kopsavilkums"]
[null,"Bilance"]
[null,"Plānotā bilance","(Prognozētie mīnus izdevumi)",{"$nulls":3},{"$f":"D17-SUM(Detalizēta_Informācija_Par_Budžetu[Plānotās izmaksas])","v":{"v":1585,"d":"1,585 EUR"}}]
[null,"Faktiskā bilance ","(Faktiskie mīnus izdevumi)",{"$nulls":3},{"$f":"D11-SUM(Detalizēta_Informācija_Par_Budžetu[Faktiskās izmaksas])","v":{"v":1740,"d":"1,740 EUR"}}]
[null,"Starpība","(Faktiskie mīnus plānotie)",{"$nulls":3},{"$f":"G4-G3","v":{"v":155,"d":"155 EUR"}}]
[]
[null,"Ienākumi",{"$nulls":3},"Izdevumi",{"$nulls":3},"Ar peles labo pogu noklikšķiniet uz Rakurstabula un pēc tam noklikšķiniet uz Atsvaidzināt, lai atjauninātu"]
[null,"FAKTISKI","Ienākumi 1",{"v":5800,"d":"5,800 EUR"},null,"FAKTISKI",{"$f":"SUM(Detalizēta_Informācija_Par_Budžetu[Faktiskās izmaksas])","v":{"v":7860,"d":"7,860 EUR"}}]
[null,null,"Ienākumi 2",{"v":2300,"d":"2,300 EUR"},{"$nulls":6},"Kategorija","Plānotās izmaksas ","Faktiskās izmaksas ","Starpība "]
[null,null,"Papildu ienākumi",{"v":1500,"d":"1,500 EUR"},{"$nulls":6},"Bērni",{"v":140,"d":"140 EUR"},{"v":140,"d":"140 EUR"},{"v":0,"d":"0 EUR"}]
[null,null,"Ienākumu kopsumma",{"$f":"SUM(D8:D10)","v":{"v":9600,"d":"9,600 EUR"}}]
[{"$nulls":10},"Izklaide",{"v":400,"d":"400 EUR"},{"v":358,"d":"358 EUR"},{"v":42,"d":"42 EUR"}]
[null,"PROGNOZĒTIE",{"$nulls":3},"PLĀNOTS",{"$f":"SUM(Detalizēta_Informācija_Par_Budžetu[Plānotās izmaksas])","v":{"v":7915,"d":"7,915 EUR"}}]
[null,null,"Ienākumi 1",{"v":6000,"d":"6,000 EUR"},{"$nulls":6},"Pārtika",{"v":1100,"d":"1,100 EUR"},{"v":1320,"d":"1,320 EUR"},{"v":-220,"d":"-220 EUR"}]
[null,null,"Ienākumi 2",{"v":1000,"d":"1,000 EUR"}]
[null,null,"Papildu ienākumi",{"v":2500,"d":"2,500 EUR"},{"$nulls":6},"Dāvanas un labdarība",{"v":100,"d":"100 EUR"},{"v":125,"d":"125 EUR"},{"v":-25,"d":"-25 EUR"}]
[null,null,"Ienākumu kopsumma",{"$f":"SUM(D14:D16)","v":{"v":9500,"d":"9,500 EUR"}}]
[{"$nulls":10},"Mājoklis",{"v":2830,"d":"2,830 EUR"},{"v":2702,"d":"2,702 EUR"},{"v":128,"d":"128 EUR"}]
[]
[{"$nulls":10},"Apdrošināšana",{"v":900,"d":"900 EUR"},{"v":900,"d":"900 EUR"},{"v":0,"d":"0 EUR"}]
[]
[{"$nulls":10},"Aizdevumi",{"v":200,"d":"200 EUR"},{"v":200,"d":"200 EUR"},{"v":0,"d":"0 EUR"}]
[]
[{"$nulls":10},"Personiskā higiēna",{"v":150,"d":"150 EUR"},{"v":140,"d":"140 EUR"},{"v":10,"d":"10 EUR"}]
[]
[{"$nulls":10},"Mājdzīvnieki",{"v":170,"d":"170 EUR"},{"v":100,"d":"100 EUR"},{"v":70,"d":"70 EUR"}]
[]
[{"$nulls":10},"Ietaupījumi vai ieguldījumi",{"v":200,"d":"200 EUR"},{"v":200,"d":"200 EUR"},{"v":0,"d":"0 EUR"}]
[]
[{"$nulls":10},"Nodokļi",{"v":300,"d":"300 EUR"},{"v":300,"d":"300 EUR"},{"v":0,"d":"0 EUR"}]
[]
[{"$nulls":10},"Transports",{"v":1425,"d":"1,425 EUR"},{"v":1375,"d":"1,375 EUR"},{"v":50,"d":"50 EUR"}]
[]
[{"$nulls":10},"Grand Total",{"v":7915,"d":"7,915 EUR"},{"v":7860,"d":"7,860 EUR"},{"v":55,"d":"55 EUR"}]

{"sheet":"Mēneša izdevumi","index":1,"n_rows":62,"n_cols":7,"rows_kept":62}
[null,"Ikmēneša izdevumi"]
[null,"Apraksts","Kategorija","Plānotās izmaksas","Faktiskās izmaksas","Starpība","Faktisko izmaksu pārskats"]
[null,"Ārpusklases nodarbības","Bērni",{"v":40,"d":"40 EUR"},{"v":40,"d":"40 EUR"},{"$f":"Detalizēta_Informācija_Par_Budžetu[[#This Row],[Plānotās izmaksas]]-Detalizēta_Informācija_Par_Budžetu[[#This Row],[Faktiskās izmaksas]]","v":{"v":0,"d":"0 EUR"}},{"$f":"Detalizēta_Informācija_Par_Budžetu[[#This Row],[Faktiskās izmaksas]]","v":{"v":40,"d":"40 EUR"}}]
[null,"Medikamenti","Bērni",null,null,{"$f":"Detalizēta_Informācija_Par_Budžetu[[#This Row],[Plānotās izmaksas]]-Detalizēta_Informācija_Par_Budžetu[[#This Row],[Faktiskās izmaksas]]","v":{"v":0,"d":"0 EUR"}},{"$f":"Detalizēta_Informācija_Par_Budžetu[[#This Row],[Faktiskās izmaksas]]","v":{"v":0,"d":"0 EUR"}}]
[null,"Skolas piederumi","Bērni",null,null,{"$f":"Detalizēta_Informācija_Par_Budžetu[[#This Row],[Plānotās izmaksas]]-Detalizēta_Informācija_Par_Budžetu[[#This Row],[Faktiskās izmaksas]]","v":{"v":0,"d":"0 EUR"}},{"$f":"Detalizēta_Informācija_Par_Budžetu[[#This Row],[Faktiskās izmaksas]]","v":{"v":0,"d":"0 EUR"}}]
[null,"Mācību maksa","Bērni",{"v":100,"d":"100 EUR"},{"v":100,"d":"100 EUR"},{"$f":"Detalizēta_Informācija_Par_Budžetu[[#This Row],[Plānotās izmaksas]]-Detalizēta_Informācija_Par_Budžetu[[#This Row],[Faktiskās izmaksas]]","v":{"v":0,"d":"0 EUR"}},{"$f":"Detalizēta_Informācija_Par_Budžetu[[#This Row],[Faktiskās izmaksas]]","v":{"v":100,"d":"100 EUR"}}]
[null,"Koncerti","Izklaide",{"v":50,"d":"50 EUR"},{"v":40,"d":"40 EUR"},{"$f":"Detalizēta_Informācija_Par_Budžetu[[#This Row],[Plānotās izmaksas]]-Detalizēta_Informācija_Par_Budžetu[[#This Row],[Faktiskās izmaksas]]","v":{"v":10,"d":"10 EUR"}},{"$f":"Detalizēta_Informācija_Par_Budžetu[[#This Row],[Faktiskās izmaksas]]","v":{"v":40,"d":"40 EUR"}}]
[null,"Teātris","Izklaide",{"v":200,"d":"200 EUR"},{"v":150,"d":"150 EUR"},{"$f":"Detalizēta_Informācija_Par_Budžetu[[#This Row],[Plānotās izmaksas]]-Detalizēta_Informācija_Par_Budžetu[[#This Row],[Faktiskās izmaksas]]","v":{"v":50,"d":"50 EUR"}},{"$f":"Detalizēta_Informācija_Par_Budžetu[[#This Row],[Faktiskās izmaksas]]","v":{"v":150,"d":"150 EUR"}}]
[null,"Filmas","Izklaide",{"v":50,"d":"50 EUR"},{"v":28,"d":"28 EUR"},{"$f":"Detalizēta_Informācija_Par_Budžetu[[#This Row],[Plānotās izmaksas]]-Detalizēta_Informācija_Par_Budžetu[[#This Row],[Faktiskās izmaksas]]","v":{"v":22,"d":"22 EUR"}},{"$f":"Detalizēta_Informācija_Par_Budžetu[[#This Row],[Faktiskās izmaksas]]","v":{"v":28,"d":"28 EUR"}}]
[null,"Mūzika (CD, lejupielādes utt.)","Izklaide",{"v":50,"d":"50 EUR"},{"v":30,"d":"30 EUR"},{"$f":"Detalizēta_Informācija_Par_Budžetu[[#This Row],[Plānotās izmaksas]]-Detalizēta_Informācija_Par_Budžetu[[#This Row],[Faktiskās izmaksas]]","v":{"v":20,"d":"20 EUR"}},{"$f":"Detalizēta_Informācija_Par_Budžetu[[#This Row],[Faktiskās izmaksas]]","v":{"v":30,"d":"30 EUR"}}]
[null,"Sporta pasākumi","Izklaide",{"v":0,"d":"0 EUR"},{"v":40,"d":"40 EUR"},{"$f":"Detalizēta_Informācija_Par_Budžetu[[#This Row],[Plānotās izmaksas]]-Detalizēta_Informācija_Par_Budžetu[[#This Row],[Faktiskās izmaksas]]","v":{"v":-40,"d":"-40 EUR"}},{"$f":"Detalizēta_Informācija_Par_Budžetu[[#This Row],[Faktiskās izmaksas]]","v":{"v":40,"d":"40 EUR"}}]
[null,"Video/DVD (iegāde)","Izklaide",{"v":20,"d":"20 EUR"},{"v":50,"d":"50 EUR"},{"$f":"Detalizēta_Informācija_Par_Budžetu[[#This Row],[Plānotās izmaksas]]-Detalizēta_Informācija_Par_Budžetu[[#This Row],[Faktiskās izmaksas]]","v":{"v":-30,"d":"-30 EUR"}},{"$f":"Detalizēta_Informācija_Par_Budžetu[[#This Row],[Faktiskās izmaksas]]","v":{"v":50,"d":"50 EUR"}}]
[null,"Video/DVD (noma)","Izklaide",{"v":30,"d":"30 EUR"},{"v":20,"d":"20 EUR"},{"$f":"Detalizēta_Informācija_Par_Budžetu[[#This Row],[Plānotās izmaksas]]-Detalizēta_Informācija_Par_Budžetu[[#This Row],[Faktiskās izmaksas]]","v":{"v":10,"d":"10 EUR"}},{"$f":"Detalizēta_Informācija_Par_Budžetu[[#This Row],[Faktiskās izmaksas]]","v":{"v":20,"d":"20 EUR"}}]
[null,"Ēšana ārpus mājas","Pārtika",{"v":1000,"d":"1,000 EUR"},{"v":1200,"d":"1,200 EUR"},{"$f":"Detalizēta_Informācija_Par_Budžetu[[#This Row],[Plānotās izmaksas]]-Detalizēta_Informācija_Par_Budžetu[[#This Row],[Faktiskās izmaksas]]","v":{"v":-200,"d":"-200 EUR"}},{"$f":"Detalizēta_Informācija_Par_Budžetu[[#This Row],[Faktiskās izmaksas]]","v":{"v":1200,"d":"1,200 EUR"}}]
[null,"Pārtikas preces","Pārtika",{"v":100,"d":"100 EUR"},{"v":120,"d":"120 EUR"},{"$f":"Detalizēta_Informācija_Par_Budžetu[[#This Row],[Plānotās izmaksas]]-Detalizēta_Informācija_Par_Budžetu[[#This Row],[Faktiskās izmaksas]]","v":{"v":-20,"d":"-20 EUR"}},{"$f":"Detalizēta_Informācija_Par_Budžetu[[#This Row],[Faktiskās izmaksas]]","v":{"v":120,"d":"120 EUR"}}]
[null,"Labdarība 1","Dāvanas un labdarība",{"v":75,"d":"75 EUR"},{"v":100,"d":"100 EUR"},{"$f":"Detalizēta_Informācija_Par_Budžetu[[#This Row],[Plānotās izmaksas]]-Detalizēta_Informācija_Par_Budžetu[[#This Row],[Faktiskās izmaksas]]","v":{"v":-25,"d":"-25 EUR"}},{"$f":"Detalizēta_Informācija_Par_Budžetu[[#This Row],[Faktiskās izmaksas]]","v":{"v":100,"d":"100 EUR"}}]
[null,"Labdarība 2","Dāvanas un labdarība",{"v":25,"d":"25 EUR"},{"v":25,"d":"25 EUR"},{"$f":"Detalizēta_Informācija_Par_Budžetu[[#This Row],[Plānotās izmaksas]]-Detalizēta_Informācija_Par_Budžetu[[#This Row],[Faktiskās izmaksas]]","v":{"v":0,"d":"0 EUR"}},{"$f":"Detalizēta_Informācija_Par_Budžetu[[#This Row],[Faktiskās izmaksas]]","v":{"v":25,"d":"25 EUR"}}]
[null,"Dāvana 1","Dāvanas un labdarība",null,null,{"$f":"Detalizēta_Informācija_Par_Budžetu[[#This Row],[Plānotās izmaksas]]-Detalizēta_Informācija_Par_Budžetu[[#This Row],[Faktiskās izmaksas]]","v":{"v":0,"d":"0 EUR"}},{"$f":"Detalizēta_Informācija_Par_Budžetu[[#This Row],[Faktiskās izmaksas]]","v":{"v":0,"d":"0 EUR"}}]
[null,"Dāvana 2","Dāvanas un labdarība",null,null,{"$f":"Detalizēta_Informācija_Par_Budžetu[[#This Row],[Plānotās izmaksas]]-Detalizēta_Informācija_Par_Budžetu[[#This Row],[Faktiskās izmaksas]]","v":{"v":0,"d":"0 EUR"}},{"$f":"Detalizēta_Informācija_Par_Budžetu[[#This Row],[Faktiskās izmaksas]]","v":{"v":0,"d":"0 EUR"}}]
[null,"Kabeļtelevīzija/satelīttelevīzija","Mājoklis",{"v":100,"d":"100 EUR"},{"v":100,"d":"100 EUR"},{"$f":"Detalizēta_Informācija_Par_Budžetu[[#This Row],[Plānotās izmaksas]]-Detalizēta_Informācija_Par_Budžetu[[#This Row],[Faktiskās izmaksas]]","v":{"v":0,"d":"0 EUR"}},{"$f":"Detalizēta_Informācija_Par_Budžetu[[#This Row],[Faktiskās izmaksas]]","v":{"v":100,"d":"100 EUR"}}]
[null,"Elektrība","Mājoklis",{"v":45,"d":"45 EUR"},{"v":50,"d":"50 EUR"},{"$f":"Detalizēta_Informācija_Par_Budžetu[[#This Row],[Plānotās izmaksas]]-Detalizēta_Informācija_Par_Budžetu[[#This Row],[Faktiskās izmaksas]]","v":{"v":-5,"d":"-5 EUR"}},{"$f":"Detalizēta_Informācija_Par_Budžetu[[#This Row],[Faktiskās izmaksas]]","v":{"v":50,"d":"50 EUR"}}]
[null,"Gāze","Mājoklis",{"v":300,"d":"300 EUR"},{"v":400,"d":"400 EUR"},{"$f":"Detalizēta_Informācija_Par_Budžetu[[#This Row],[Plānotās izmaksas]]-Detalizēta_Informācija_Par_Budžetu[[#This Row],[Faktiskās izmaksas]]","v":{"v":-100,"d":"-100 EUR"}},{"$f":"Detalizēta_Informācija_Par_Budžetu[[#This Row],[Faktiskās izmaksas]]","v":{"v":400,"d":"400 EUR"}}]
[null,"Mājas uzkopšanas pakalpojums","Mājoklis",{"v":200,"d":"200 EUR"},null,{"$f":"Detalizēta_Informācija_Par_Budžetu[[#This Row],[Plānotās izmaksas]]-Detalizēta_Informācija_Par_Budžetu[[#This Row],[Faktiskās izmaksas]]","v":{"v":200,"d":"200 EUR"}},{"$f":"Detalizēta_Informācija_Par_Budžetu[[#This Row],[Faktiskās izmaksas]]","v":{"v":0,"d":"0 EUR"}}]
[null,"Uzturēšana","Mājoklis",{"v":200,"d":"200 EUR"},{"v":150,"d":"150 EUR"},{"$f":"Detalizēta_Informācija_Par_Budžetu[[#This Row],[Plānotās izmaksas]]-Detalizēta_Informācija_Par_Budžetu[[#This Row],[Faktiskās izmaksas]]","v":{"v":50,"d":"50 EUR"}},{"$f":"Detalizēta_Informācija_Par_Budžetu[[#This Row],[Faktiskās izmaksas]]","v":{"v":150,"d":"150 EUR"}}]
[null,"Hipotekārais kredīts vai īres maksa","Mājoklis",{"v":1700,"d":"1,700 EUR"},{"v":1700,"d":"1,700 EUR"},{"$f":"Detalizēta_Informācija_Par_Budžetu[[#This Row],[Plānotās izmaksas]]-Detalizēta_Informācija_Par_Budžetu[[#This Row],[Faktiskās izmaksas]]","v":{"v":0,"d":"0 EUR"}},{"$f":"Detalizēta_Informācija_Par_Budžetu[[#This Row],[Faktiskās izmaksas]]","v":{"v":1700,"d":"1,700 EUR"}}]
[null,"Gāze/nafta","Mājoklis",null,null,{"$f":"Detalizēta_Informācija_Par_Budžetu[[#This Row],[Plānotās izmaksas]]-Detalizēta_Informācija_Par_Budžetu[[#This Row],[Faktiskās izmaksas]]","v":{"v":0,"d":"0 EUR"}},{"$f":"Detalizēta_Informācija_Par_Budžetu[[#This Row],[Faktiskās izmaksas]]","v":{"v":0,"d":"0 EUR"}}]
[null,"Tiešsaistes/interneta pakalpojumi","Mājoklis",{"v":100,"d":"100 EUR"},{"v":100,"d":"100 EUR"},{"$f":"Detalizēta_Informācija_Par_Budžetu[[#This Row],[Plānotās izmaksas]]-Detalizēta_Informācija_Par_Budžetu[[#This Row],[Faktiskās izmaksas]]","v":{"v":0,"d":"0 EUR"}},{"$f":"Detalizēta_Informācija_Par_Budžetu[[#This Row],[Faktiskās izmaksas]]","v":{"v":100,"d":"100 EUR"}}]
[null,"Tālrunis (mobilais)","Mājoklis",{"v":60,"d":"60 EUR"},{"v":60,"d":"60 EUR"},{"$f":"Detalizēta_Informācija_Par_Budžetu[[#This Row],[Plānotās izmaksas]]-Detalizēta_Informācija_Par_Budžetu[[#This Row],[Faktiskās izmaksas]]","v":{"v":0,"d":"0 EUR"}},{"$f":"Detalizēta_Informācija_Par_Budžetu[[#This Row],[Faktiskās izmaksas]]","v":{"v":60,"d":"60 EUR"}}]
[null,"Tālrunis (mājās)","Mājoklis",{"v":35,"d":"35 EUR"},{"v":39,"d":"39 EUR"},{"$f":"Detalizēta_Informācija_Par_Budžetu[[#This Row],[Plānotās izmaksas]]-Detalizēta_Informācija_Par_Budžetu[[#This Row],[Faktiskās izmaksas]]","v":{"v":-4,"d":"-4 EUR"}},{"$f":"Detalizēta_Informācija_Par_Budžetu[[#This Row],[Faktiskās izmaksas]]","v":{"v":39,"d":"39 EUR"}}]
[null,"Materiāli","Mājoklis",{"v":40,"d":"40 EUR"},{"v":55,"d":"55 EUR"},{"$f":"Detalizēta_Informācija_Par_Budžetu[[#This Row],[Plānotās izmaksas]]-Detalizēta_Informācija_Par_Budžetu[[#This Row],[Faktiskās izmaksas]]","v":{"v":-15,"d":"-15 EUR"}},{"$f":"Detalizēta_Informācija_Par_Budžetu[[#This Row],[Faktiskās izmaksas]]","v":{"v":55,"d":"55 EUR"}}]
[null,"Atkritumu savākšana un pārstrāde","Mājoklis",{"v":25,"d":"25 EUR"},{"v":22,"d":"22 EUR"},{"$f":"Detalizēta_Informācija_Par_Budžetu[[#This Row],[Plānotās izmaksas]]-Detalizēta_Informācija_Par_Budžetu[[#This Row],[Faktiskās izmaksas]]","v":{"v":3,"d":"3 EUR"}},{"$f":"Detalizēta_Informācija_Par_Budžetu[[#This Row],[Faktiskās izmaksas]]","v":{"v":22,"d":"22 EUR"}}]
[null,"Ūdens un kanalizācija","Mājoklis",{"v":25,"d":"25 EUR"},{"v":26,"d":"26 EUR"},{"$f":"Detalizēta_Informācija_Par_Budžetu[[#This Row],[Plānotās izmaksas]]-Detalizēta_Informācija_Par_Budžetu[[#This Row],[Faktiskās izmaksas]]","v":{"v":-1,"d":"-1 EUR"}},{"$f":"Detalizēta_Informācija_Par_Budžetu[[#This Row],[Faktiskās izmaksas]]","v":{"v":26,"d":"26 EUR"}}]
[null,"Veselība","Apdrošināšana",{"v":400,"d":"400 EUR"},{"v":400,"d":"400 EUR"},{"$f":"Detalizēta_Informācija_Par_Budžetu[[#This Row],[Plānotās izmaksas]]-Detalizēta_Informācija_Par_Budžetu[[#This Row],[Faktiskās izmaksas]]","v":{"v":0,"d":"0 EUR"}},{"$f":"Detalizēta_Informācija_Par_Budžetu[[#This Row],[Faktiskās izmaksas]]","v":{"v":400,"d":"400 EUR"}}]
[null,"Mājas","Apdrošināšana",{"v":400,"d":"400 EUR"},{"v":400,"d":"400 EUR"},{"$f":"Detalizēta_Informācija_Par_Budžetu[[#This Row],[Plānotās izmaksas]]-Detalizēta_Informācija_Par_Budžetu[[#This Row],[Faktiskās izmaksas]]","v":{"v":0,"d":"0 EUR"}},{"$f":"Detalizēta_Informācija_Par_Budžetu[[#This Row],[Faktiskās izmaksas]]","v":{"v":400,"d":"400 EUR"}}]
[null,"Dzīvība","Apdrošināšana",{"v":100,"d":"100 EUR"},{"v":100,"d":"100 EUR"},{"$f":"Detalizēta_Informācija_Par_Budžetu[[#This Row],[Plānotās izmaksas]]-Detalizēta_Informācija_Par_Budžetu[[#This Row],[Faktiskās izmaksas]]","v":{"v":0,"d":"0 EUR"}},{"$f":"Detalizēta_Informācija_Par_Budžetu[[#This Row],[Faktiskās izmaksas]]","v":{"v":100,"d":"100 EUR"}}]
[null,"Kredītkarte 1","Aizdevumi",{"v":200,"d":"200 EUR"},{"v":200,"d":"200 EUR"},{"$f":"Detalizēta_Informācija_Par_Budžetu[[#This Row],[Plānotās izmaksas]]-Detalizēta_Informācija_Par_Budžetu[[#This Row],[Faktiskās izmaksas]]","v":{"v":0,"d":"0 EUR"}},{"$f":"Detalizēta_Informācija_Par_Budžetu[[#This Row],[Faktiskās izmaksas]]","v":{"v":200,"d":"200 EUR"}}]
[null,"Kredītkarte 2","Aizdevumi",null,null,{"$f":"Detalizēta_Informācija_Par_Budžetu[[#This Row],[Plānotās izmaksas]]-Detalizēta_Informācija_Par_Budžetu[[#This Row],[Faktiskās izmaksas]]","v":{"v":0,"d":"0 EUR"}},{"$f":"Detalizēta_Informācija_Par_Budžetu[[#This Row],[Faktiskās izmaksas]]","v":{"v":0,"d":"0 EUR"}}]
[null,"Kredītkarte 3","Aizdevumi",null,null,{"$f":"Detalizēta_Informācija_Par_Budžetu[[#This Row],[Plānotās izmaksas]]-Detalizēta_Informācija_Par_Budžetu[[#This Row],[Faktiskās izmaksas]]","v":{"v":0,"d":"0 EUR"}},{"$f":"Detalizēta_Informācija_Par_Budžetu[[#This Row],[Faktiskās izmaksas]]","v":{"v":0,"d":"0 EUR"}}]
[null,"Personisks","Aizdevumi",null,null,{"$f":"Detalizēta_Informācija_Par_Budžetu[[#This Row],[Plānotās izmaksas]]-Detalizēta_Informācija_Par_Budžetu[[#This Row],[Faktiskās izmaksas]]","v":{"v":0,"d":"0 EUR"}},{"$f":"Detalizēta_Informācija_Par_Budžetu[[#This Row],[Faktiskās izmaksas]]","v":{"v":0,"d":"0 EUR"}}]
[null,"Mācību","Aizdevumi",null,null,{"$f":"Detalizēta_Informācija_Par_Budžetu[[#This Row],[Plānotās izmaksas]]-Detalizēta_Informācija_Par_Budžetu[[#This Row],[Faktiskās izmaksas]]","v":{"v":0,"d":"0 EUR"}},{"$f":"Detalizēta_Informācija_Par_Budžetu[[#This Row],[Faktiskās izmaksas]]","v":{"v":0,"d":"0 EUR"}}]
[null,"Apģērbs","Personiskā higiēna",{"v":150,"d":"150 EUR"},{"v":140,"d":"140 EUR"},{"$f":"Detalizēta_Informācija_Par_Budžetu[[#This Row],[Plānotās izmaksas]]-Detalizēta_Informācija_Par_Budžetu[[#This Row],[Faktiskās izmaksas]]","v":{"v":10,"d":"10 EUR"}},{"$f":"Detalizēta_Informācija_Par_Budžetu[[#This Row],[Faktiskās izmaksas]]","v":{"v":140,"d":"140 EUR"}}]
[null,"Ķīmiskā tīrītava","Personiskā higiēna",null,null,{"$f":"Detalizēta_Informācija_Par_Budžetu[[#This Row],[Plānotās izmaksas]]-Detalizēta_Informācija_Par_Budžetu[[#This Row],[Faktiskās izmaksas]]","v":{"v":0,"d":"0 EUR"}},{"$f":"Detalizēta_Informācija_Par_Budžetu[[#This Row],[Faktiskās izmaksas]]","v":{"v":0,"d":"0 EUR"}}]
[null,"Mati/nagi","Personiskā higiēna",null,null,{"$f":"Detalizēta_Informācija_Par_Budžetu[[#This Row],[Plānotās izmaksas]]-Detalizēta_Informācija_Par_Budžetu[[#This Row],[Faktiskās izmaksas]]","v":{"v":0,"d":"0 EUR"}},{"$f":"Detalizēta_Informācija_Par_Budžetu[[#This Row],[Faktiskās izmaksas]]","v":{"v":0,"d":"0 EUR"}}]
[null,"Sporta klubs","Personiskā higiēna",null,null,{"$f":"Detalizēta_Informācija_Par_Budžetu[[#This Row],[Plānotās izmaksas]]-Detalizēta_Informācija_Par_Budžetu[[#This Row],[Faktiskās izmaksas]]","v":{"v":0,"d":"0 EUR"}},{"$f":"Detalizēta_Informācija_Par_Budžetu[[#This Row],[Faktiskās izmaksas]]","v":{"v":0,"d":"0 EUR"}}]
[null,"Medikamenti","Personiskā higiēna",null,null,{"$f":"Detalizēta_Informācija_Par_Budžetu[[#This Row],[Plānotās izmaksas]]-Detalizēta_Informācija_Par_Budžetu[[#This Row],[Faktiskās izmaksas]]","v":{"v":0,"d":"0 EUR"}},{"$f":"Detalizēta_Informācija_Par_Budžetu[[#This Row],[Faktiskās izmaksas]]","v":{"v":0,"d":"0 EUR"}}]
[null,"Pārtika","Mājdzīvnieki",{"v":150,"d":"150 EUR"},{"v":75,"d":"75 EUR"},{"$f":"Detalizēta_Informācija_Par_Budžetu[[#This Row],[Plānotās izmaksas]]-Detalizēta_Informācija_Par_Budžetu[[#This Row],[Faktiskās izmaksas]]","v":{"v":75,"d":"75 EUR"}},{"$f":"Detalizēta_Informācija_Par_Budžetu[[#This Row],[Faktiskās izmaksas]]","v":{"v":75,"d":"75 EUR"}}]
[null,"Kopšana","Mājdzīvnieki",{"v":20,"d":"20 EUR"},{"v":25,"d":"25 EUR"},{"$f":"Detalizēta_Informācija_Par_Budžetu[[#This Row],[Plānotās izmaksas]]-Detalizēta_Informācija_Par_Budžetu[[#This Row],[Faktiskās izmaksas]]","v":{"v":-5,"d":"-5 EUR"}},{"$f":"Detalizēta_Informācija_Par_Budžetu[[#This Row],[Faktiskās izmaksas]]","v":{"v":25,"d":"25 EUR"}}]
[null,"Medikamenti","Mājdzīvnieki",null,null,{"$f":"Detalizēta_Informācija_Par_Budžetu[[#This Row],[Plānotās izmaksas]]-Detalizēta_Informācija_Par_Budžetu[[#This Row],[Faktiskās izmaksas]]","v":{"v":0,"d":"0 EUR"}},{"$f":"Detalizēta_Informācija_Par_Budžetu[[#This Row],[Faktiskās izmaksas]]","v":{"v":0,"d":"0 EUR"}}]
[null,"Rotaļlietas","Mājdzīvnieki",null,null,{"$f":"Detalizēta_Informācija_Par_Budžetu[[#This Row],[Plānotās izmaksas]]-Detalizēta_Informācija_Par_Budžetu[[#This Row],[Faktiskās izmaksas]]","v":{"v":0,"d":"0 EUR"}},{"$f":"Detalizēta_Informācija_Par_Budžetu[[#This Row],[Faktiskās izmaksas]]","v":{"v":0,"d":"0 EUR"}}]
[null,"Ieguldījumu konts","Ietaupījumi vai ieguldījumi",{"v":200,"d":"200 EUR"},{"v":200,"d":"200 EUR"},{"$f":"Detalizēta_Informācija_Par_Budžetu[[#This Row],[Plānotās izmaksas]]-Detalizēta_Informācija_Par_Budžetu[[#This Row],[Faktiskās izmaksas]]","v":{"v":0,"d":"0 EUR"}},{"$f":"Detalizēta_Informācija_Par_Budžetu[[#This Row],[Faktiskās izmaksas]]","v":{"v":200,"d":"200 EUR"}}]
[null,"Pensijas konts","Ietaupījumi vai ieguldījumi",null,null,{"$f":"Detalizēta_Informācija_Par_Budžetu[[#This Row],[Plānotās izmaksas]]-Detalizēta_Informācija_Par_Budžetu[[#This Row],[Faktiskās izmaksas]]","v":{"v":0,"d":"0 EUR"}},{"$f":"Detalizēta_Informācija_Par_Budžetu[[#This Row],[Faktiskās izmaksas]]","v":{"v":0,"d":"0 EUR"}}]
[null,"Federālie","Nodokļi",{"v":300,"d":"300 EUR"},{"v":300,"d":"300 EUR"},{"$f":"Detalizēta_Informācija_Par_Budžetu[[#This Row],[Plānotās izmaksas]]-Detalizēta_Informācija_Par_Budžetu[[#This Row],[Faktiskās izmaksas]]","v":{"v":0,"d":"0 EUR"}},{"$f":"Detalizēta_Informācija_Par_Budžetu[[#This Row],[Faktiskās izmaksas]]","v":{"v":300,"d":"300 EUR"}}]
[null,"Lokālā","Nodokļi",null,null,{"$f":"Detalizēta_Informācija_Par_Budžetu[[#This Row],[Plānotās izmaksas]]-Detalizēta_Informācija_Par_Budžetu[[#This Row],[Faktiskās izmaksas]]","v":{"v":0,"d":"0 EUR"}},{"$f":"Detalizēta_Informācija_Par_Budžetu[[#This Row],[Faktiskās izmaksas]]","v":{"v":0,"d":"0 EUR"}}]
[null,"Valsts/reģions","Nodokļi",null,null,{"$f":"Detalizēta_Informācija_Par_Budžetu[[#This Row],[Plānotās izmaksas]]-Detalizēta_Informācija_Par_Budžetu[[#This Row],[Faktiskās izmaksas]]","v":{"v":0,"d":"0 EUR"}},{"$f":"Detalizēta_Informācija_Par_Budžetu[[#This Row],[Faktiskās izmaksas]]","v":{"v":0,"d":"0 EUR"}}]
[null,"Maksa par braucienu ar autobusu/taksometru","Transports",{"v":100,"d":"100 EUR"},{"v":150,"d":"150 EUR"},{"$f":"Detalizēta_Informācija_Par_Budžetu[[#This Row],[Plānotās izmaksas]]-Detalizēta_Informācija_Par_Budžetu[[#This Row],[Faktiskās izmaksas]]","v":{"v":-50,"d":"-50 EUR"}},{"$f":"Detalizēta_Informācija_Par_Budžetu[[#This Row],[Faktiskās izmaksas]]","v":{"v":150,"d":"150 EUR"}}]
[null,"Degviela","Transports",{"v":450,"d":"450 EUR"},{"v":400,"d":"400 EUR"},{"$f":"Detalizēta_Informācija_Par_Budžetu[[#This Row],[Plānotās izmaksas]]-Detalizēta_Informācija_Par_Budžetu[[#This Row],[Faktiskās izmaksas]]","v":{"v":50,"d":"50 EUR"}},{"$f":"Detalizēta_Informācija_Par_Budžetu[[#This Row],[Faktiskās izmaksas]]","v":{"v":400,"d":"400 EUR"}}]
[null,"Apdrošināšana","Transports",{"v":300,"d":"300 EUR"},{"v":300,"d":"300 EUR"},{"$f":"Detalizēta_Informācija_Par_Budžetu[[#This Row],[Plānotās izmaksas]]-Detalizēta_Informācija_Par_Budžetu[[#This Row],[Faktiskās izmaksas]]","v":{"v":0,"d":"0 EUR"}},{"$f":"Detalizēta_Informācija_Par_Budžetu[[#This Row],[Faktiskās izmaksas]]","v":{"v":300,"d":"300 EUR"}}]
[null,"Licencēšana ","Transports",{"v":25,"d":"25 EUR"},{"v":25,"d":"25 EUR"},{"$f":"Detalizēta_Informācija_Par_Budžetu[[#This Row],[Plānotās izmaksas]]-Detalizēta_Informācija_Par_Budžetu[[#This Row],[Faktiskās izmaksas]]","v":{"v":0,"d":"0 EUR"}},{"$f":"Detalizēta_Informācija_Par_Budžetu[[#This Row],[Faktiskās izmaksas]]","v":{"v":25,"d":"25 EUR"}}]
[null,"Uzturēšana","Transports",{"v":100,"d":"100 EUR"},{"v":50,"d":"50 EUR"},{"$f":"Detalizēta_Informācija_Par_Budžetu[[#This Row],[Plānotās izmaksas]]-Detalizēta_Informācija_Par_Budžetu[[#This Row],[Faktiskās izmaksas]]","v":{"v":50,"d":"50 EUR"}},{"$f":"Detalizēta_Informācija_Par_Budžetu[[#This Row],[Faktiskās izmaksas]]","v":{"v":50,"d":"50 EUR"}}]
[null,"Izdevumi par autostāvvietu","Transports",null,null,{"$f":"Detalizēta_Informācija_Par_Budžetu[[#This Row],[Plānotās izmaksas]]-Detalizēta_Informācija_Par_Budžetu[[#This Row],[Faktiskās izmaksas]]","v":{"v":0,"d":"0 EUR"}},{"$f":"Detalizēta_Informācija_Par_Budžetu[[#This Row],[Faktiskās izmaksas]]","v":{"v":0,"d":"0 EUR"}}]
[null,"Maksājums par transportlīdzekli","Transports",{"v":450,"d":"450 EUR"},{"v":450,"d":"450 EUR"},{"$f":"Detalizēta_Informācija_Par_Budžetu[[#This Row],[Plānotās izmaksas]]-Detalizēta_Informācija_Par_Budžetu[[#This Row],[Faktiskās izmaksas]]","v":{"v":0,"d":"0 EUR"}},{"$f":"Detalizēta_Informācija_Par_Budžetu[[#This Row],[Faktiskās izmaksas]]","v":{"v":450,"d":"450 EUR"}}]
[null,"Kopsumma",null,{"$f":"SUBTOTAL(109,Detalizēta_Informācija_Par_Budžetu[Plānotās izmaksas])","v":{"v":7915,"d":"7,915 EUR"}},{"$f":"SUBTOTAL(109,Detalizēta_Informācija_Par_Budžetu[Faktiskās izmaksas])","v":{"v":7860,"d":"7,860 EUR"}},{"$f":"SUBTOTAL(109,Detalizēta_Informācija_Par_Budžetu[Starpība])","v":{"v":55,"d":"55 EUR"}}]

{"sheet":"Papildu dati","index":2,"n_rows":15,"n_cols":5,"rows_kept":15}
[null,"Budžeta pārskata diagrammas rakurstabula",null,null,"Budžeta detalizētās informācijas kategorijas uzmeklēšanas saraksts"]
[null,"Kategorija","Izmaksas",null,"Budžeta kategorijas uzmeklēšana"]
[null,"Bērni",140,null,"Bērni"]
[null,"Izklaide",358,null,"Izklaide"]
[null,"Pārtika",1320,null,"Pārtika"]
[null,"Dāvanas un labdarība",125,null,"Dāvanas un labdarība"]
[null,"Mājoklis",2702,null,"Mājoklis"]
[null,"Apdrošināšana",900,null,"Apdrošināšana"]
[null,"Aizdevumi",200,null,"Aizdevumi"]
[null,"Personiskā higiēna",140,null,"Personiskā higiēna"]
[null,"Mājdzīvnieki",100,null,"Mājdzīvnieki"]
[null,"Ietaupījumi vai ieguldījumi",200,null,"Ietaupījumi vai ieguldījumi"]
[null,"Nodokļi",300,null,"Nodokļi"]
[null,"Transports",1375,null,"Transports"]
[null,"Grand Total",7860]